Cogmind - Beta 13 @@@ ROGUE MODE // 2024.04.18 @ 14:55:33 Player: Darch Result: Destroyed by H-55 Commando with Gauss Rifle Performance ------------- Evolutions (2) 1000 Regions Visited (4) 800 Robots Destroyed (15) 75 Value Destroyed (499) 499 Prototype IDs (1) 20 Alien Tech Used (0) 0 Bonus (0) 0 TOTAL SCORE: 2394 Bonus ------- None Cogmind --------- Core Integrity 0/550 Matter 234/300 Energy 98/100 System Corruption 5% Temperature Cool (0) Movement Core (50) Location -8/Materials Parts ------- > --- POWER (2) -------- (None) > --- PROPULSION (4) --- (None) > --- UTILITY (3) ------ (None) > --- WEAPON (2) ------- Powered Hammer > --- INVENTORY (5) ---- Wheel Particle Cannon Powered Hammer Peak State ------------ > --- POWER ------------ Ion Engine Heavy Ion Engine > --- PROPULSION ------- Hover Unit Hover Unit Hover Unit > --- UTILITY ---------- Structural Scanner Hardened Light Armor Plating Hardened Light Armor Plating > --- WEAPON ----------- Shotgun Powered Hammer > --- INVENTORY -------- Wheel Hardened Light Armor Plating Particle Cannon Particle Cannon [Rating: 18] Favorites ----------- Power Ion Engine Engine Ion Engine Propulsion Hover Unit Treads Light Treads Hover Unit Hover Unit Flight Unit Flight Unit Utility Hardened Light Armor Plating Device Weight Redist. System Storage Small Storage Unit Protection Hardened Light Armor Plating Weapon Particle Cannon Energy Gun EM Pulse Gun Energy Cannon Particle Cannon Ballistic Gun Shotgun Impact Weapon Powered Hammer Build | -11 -10 -9 -9 -8 ------- Run | Yrd Mat Mat Min Mat Slots Evolved 4 | . . 2 . 2 Power 1 | . . 1 . . Propulsion 2 | . . 1 . 1 Utility 1 | . . . . 1 Weapon . | . . . . . Parts Attached 30 | 5 7 12 1 5 Power 3 | 1 . 2 . . Engine 3 | 1 . 2 . . Core . | . . . . . Reactor . | . . . . . Propulsion 10 | 1 2 7 . . Treads 1 | 1 . . . . Leg . | . . . . . Wheel . | . . . . . Hover 6 | . 2 4 . . Flight 3 | . . 3 . . Utility 9 | 1 3 2 1 2 Device 4 | . 2 1 1 . Storage 1 | 1 . . . . Processor . | . . . . . Hackware . | . . . . . Protection 4 | . 1 1 . 2 Artifact . | . . . . . Weapon 8 | 2 2 1 . 3 Energy Gun 2 | 2 . . . . Energy Cannon 2 | . 2 . . . Ballistic Gun 2 | . . 1 . 1 Ballistic Cannon . | . . . . . Launcher . | . . . . . Special Weapon . | . . . . . Impact Weapon 2 | . . . . 2 Slashing Weapon . | . . . . . Piercing Weapon . | . . . . . Special Melee Weapon . | . . . . . Unidentified Prototypes 1 | . . 1 . . Parts Lost 10 | . . . 1 9 Power 2 | . . . . 2 Propulsion 3 | . . . . 3 Utility 4 | . . . 1 3 Weapon 1 | . . . . 1 Highest Loss Streak 8 | . . . 1 8 To Critical Strikes 1 | . . . . 1 Average Slot Usage (%) 88 | . 80 98 97 74 Engine 18 | . 14 22 22 16 Hover 26 | . 21 30 33 18 Device 8 | . 7 10 8 7 Protection 10 | . 1 11 11 16 Energy Gun 4 | . 20 . . . Energy Cannon 8 | . 7 14 11 3 Ballistic Gun 7 | . . 7 11 7 Impact Weapon 1 | . . . . 6 Naked Turns . | . . . . . Heaviest Build 31 | 12 14 25 26 31 Greatest Support 24 | 20 20 24 24 18 Greatest Overweight (x) 2 | 2 1 1 1 2 Average Overweight (x) . | . . . 1 1 Largest Inventory Capacity 8 | 8 8 5 5 5 Average Capacity 5 | 7 5 5 5 5 Most Carried 6 | 6 6 5 5 5 Average Carried 4 | 3 4 4 4 3 Final Capacity 8 | 8 5 5 5 5 Final Carried 5 | 4 5 5 4 3 Class Distribution -------------------- 100% | Mutant Dominant Class ---------------- Mutant | -10/Materials Mutant | -9/Materials Mutant | -9/Mines Mutant | -8/Materials Resources | -11 -10 -9 -9 -8 ----------- Run | Yrd Mat Mat Min Mat Matter Collected 502 | 236 29 100 80 57 Remotely . | . . . . . Salvage Created 585 | . 76 100 . 409 Parts 17 | . 3 6 . 8 Haulers Intercepted . | . . . . . Recyclers Shooed . | . . . . . Parts Field Recycled . | . . . . . Retrieved Matter . | . . . . . Parts Self-Destructed . | . . . . . Prevented . | . . . . . Kills | -11 -10 -9 -9 -8 ------- Run | Yrd Mat Mat Min Mat Combat Hostiles Destroyed 13 | . 2 2 . 9 Melee 2 | . . . . 2 Guns 4 | . 1 . . 3 Cannons 2 | . . 2 . . Classes Destroyed 7 | . 1 1 . 5 Builder 1 | . . . . 1 Recycler 1 | . . . . 1 Swarmer 2 | . . . . 2 Grunt 8 | . 2 1 . 5 Brawler 1 | . . . . 1 Duelist 1 | . . . . 1 Sentry 1 | . . 1 . . Best Kill Streak 9 | . 1 1 . 9 Combat Bots Only 5 | . 1 1 . 5 Max Kills in Single Turn 1 | . 1 1 . 1 Gunslinging . | . . . . . Exploded . | . . . . . Melee 1 | . . . . 1 Uniques/NPCs Destroyed . | . . . . . Combat | -11 -10 -9 -9 -8 -------- Run | Yrd Mat Mat Min Mat Hostile Shots Fired 132 | . 13 10 . 109 Missed 38 | . 4 3 . 31 Damage Taken 1700 | . 99 102 16 1483 Core 644 | . 67 24 . 553 Absorbed by Shields . | . . . . . Core Remaining (%) 89 | 100 73 . 94 . Volleys Fired 50 | 6 13 6 . 25 Largest 2 | 2 2 2 . 1 Hottest 136 | 90 136 136 . 23 Shots Fired 75 | 12 26 12 . 25 Gun 66 | 12 24 5 . 25 Cannon 9 | . 2 7 . . Launcher . | . . . . . Special . | . . . . . Kinetic 30 | . . 5 . 25 Thermal 27 | 6 14 7 . . Explosive . | . . . . . Electromagnetic 18 | 6 12 . . . Robot Hit Streak 13 | 10 13 6 . 9 Robot Miss Streak 2 | 2 2 1 . 2 Penetration Max . | . . . . . Secondary Targets . | . . . . . Shots Hit Robots 74 | 10 14 6 . 44 Core Hits 19 | 1 3 2 . 13 Critical Kills . | . . . . . Critical Parts Destroyed 4 | . . . . 4 Critical Strikes 7 | 1 2 . . 4 Burn 3 | 1 2 . . . Smash 4 | . . . . 4 Melee Attacks 29 | . . . . 29 Impact 29 | . . . . 29 Slashing . | . . . . . Piercing . | . . . . . Sneak Attacks 2 | . . . . 2 Combat Hostiles . | . . . . . Follow-up Attacks 4 | . . . . 4 Damage Inflicted 1680 | 129 179 139 34 1199 Guns 762 | 129 178 63 . 392 Cannons 62 | . . 62 . . Explosions . | . . . . . Melee 807 | . . . . 807 Ramming 49 | . 1 14 34 . Kinetic 455 | . . 63 . 392 Thermal 224 | 63 99 62 . . Explosive . | . . . . . Electromagnetic 145 | 66 79 . . . Impact 807 | . . . . 807 Slashing . | . . . . . Piercing . | . . . . . Highest Corruption 5 | . . . 4 5 Average Corruption 4 | . . . 4 5 Corruption Purged . | . . . . . Corruption Blocked . | . . . . . Effects 7 | . . . 6 1 Message Errors 2 | . . . 2 . Matter Fused 1 | . . . . 1 Energy Discharges 2 | . . . 2 . Data Loss (major) 1 | . . . 1 . Alerts 1 | . . . 1 . Overload Shots . | . . . . . Overflow Damage 330 | . . . . 330 Projectiles . | . . . . . Explosions . | . . . . . Melee 330 | . . . . 330 Knockbacks 2 | . . . . 2 Impact 2 | . . . . 2 Kinetic . | . . . . . Secondary . | . . . . . Self-Inflicted Damage 23 | . . 7 16 . Shots . | . . . . . Rammed 7 | 1 1 1 4 . Targets Rammed 7 | 1 1 1 4 . Kicked . | . . . . . Crushed . | . . . . . Highest Temperature 409 | 140 409 186 . 231 Average Temperature 120 | 70 168 82 . 133 Received Heat Transfer 453 | . 54 39 . 360 Effects 1 | . 1 . . . Shutdowns 1 | . 1 . . . Siege Activations . | . . . . . Robots Corrupted . | . . . . . Combat Hostiles . | . . . . . Parts Fried 4 | . 1 . . 3 Impact Corruptions 10 | . . . . 10 Robots Melted 1 | . 1 . . . Combat Hostiles 1 | . 1 . . . Parts Melted 1 | . 1 . . . Heat Transferred 814 | 259 444 111 . . Parts Sabotaged . | . . . . . Parts Stolen . | . . . . . Parts Stripped . | . . . . . Power Chain Reactions . | . . . . . Alert | -11 -10 -9 -9 -8 ------- Run | Yrd Mat Mat Min Mat Peak Influence 161 | . 50 125 53 161 Initial 48 | . . 20 48 . Average 40 | . 23 73 45 41 Maximum Alert Level . | . . . . . Low Security (%) 100 | 100 100 100 100 100 Level 1 . | . . . . . Level 2 . | . . . . . Level 3 . | . . . . . Level 4 . | . . . . . Level 5 . | . . . . . High Security . | . . . . . Max Security . | . . . . . Squads Dispatched 4 | . 1 1 . 2 Investigation 1 | . 1 . . . Extermination . | . . . . . Reinforcement 2 | . . 1 . 1 Assault 1 | . . . . 1 Garrison . | . . . . . Intercept . | . . . . . Searches Triggered . | . . . . . Construction Impeded . | . . . . . Haulers Reinforced . | . . . . . Active Scanning Responses . | . . . . . Cargo Convoy Interrupts . | . . . . . Stealth | -11 -10 -9 -9 -8 --------- Run | Yrd Mat Mat Min Mat Distress Signals 1 | . . . . 1 Communications Jammed . | . . . . . Distress Signals . | . . . . . Times Spotted 28 | . 2 6 . 20 Peak Tracking Total 15 | . 2 6 . 15 Tactical Retreats 2 | . . . . 2 Traps | -11 -10 -9 -9 -8 ------- Run | Yrd Mat Mat Min Mat Traps Triggered . | . . . . . Indirectly . | . . . . . Trap Hack Attempts . | . . . . . Triggered . | . . . . . Disarmed . | . . . . . Reprogrammed . | . . . . . Reused . | . . . . . Traps Extracted . | . . . . . Installed . | . . . . . Triggered . | . . . . . Machines | -11 -10 -9 -9 -8 ---------- Run | Yrd Mat Mat Min Mat Machines Disabled . | . . . . . Max in Single Turn . | . . . . . Machines Repaired . | . . . . . Machines Dismantled . | . . . . . Machines Sabotaged . | . . . . . Overloaded Fab Kills . | . . . . . Hacking | -11 -10 -9 -9 -8 --------- Run | Yrd Mat Mat Min Mat Machines Accessed 6 | . 3 1 1 1 Terminals 5 | . 2 1 1 1 Fabricators . | . . . . . Repair Stations . | . . . . . Recycling Units 1 | . 1 . . . Scanalyzers . | . . . . . Garrison Access . | . . . . . Total Hacks 14 | . 8 1 3 2 Successful 7 | . 5 . 1 1 Failed 7 | . 3 1 2 1 Catastrophic 1 | . . 1 . . Database Lockouts . | . . . . . Manual 11 | . 5 1 3 2 Terminals 13 | . 7 1 3 2 Fabricators . | . . . . . Repair Stations . | . . . . . Recycling Units 1 | . 1 . . . Scanalyzers . | . . . . . Garrison Access . | . . . . . Terminal Hacks 2 | . 2 . . . Record 1 | . 1 . . . Zone Layout 1 | . 1 . . . Fabricator Hacks . | . . . . . Repair Station Hacks . | . . . . . Recycling Unit Hacks 1 | . 1 . . . Report Inventory 1 | . 1 . . . Scanalyzer . | . . . . . Garrison Access Hacks . | . . . . . Unauthorized Hacks 4 | . 2 . 1 1 Terminals 4 | . 2 . 1 1 Botnet 4 | . 2 . 1 1 Fabricators . | . . . . . Repair Stations . | . . . . . Recycling Units . | . . . . . Scanalyzers . | . . . . . Garrison Access . | . . . . . Data Cores Recovered . | . . . . . Used . | . . . . . Hacking Detections 3 | . 2 . 1 . Full Trace Events 1 | . 1 . . . Feedback Events . | . . . . . Feedback Blocked . | . . . . . Robot Schematics Acquired . | . . . . . Robots Built . | . . . . . Authchips . | . . . . . Time . | . . . . . Total Robot Build Rating . | . . . . . Part Schematics Acquired . | . . . . . Parts Built . | . . . . . Authchips . | . . . . . Time . | . . . . . Total Part Build Rating . | . . . . . Parts Repaired . | . . . . . Time . | . . . . . Parts Recycled . | . . . . . Recycled Matter . | . . . . . Retrieved Matter . | . . . . . Retrieved Components . | . . . . . Parts Scanalyzed . | . . . . . Part Schematics Acquired . | . . . . . Parts Damaged . | . . . . . Bothacking | -11 -10 -9 -9 -8 ------------ Run | Yrd Mat Mat Min Mat Used RIF Installer . | . . . . . Robots Hacked . | . . . . . Non-combat . | . . . . . Combat . | . . . . . Robot Hacks Applied . | . . . . . Relay Couplers Released . | . . . . . Fabnet Peak Effective % . | . . . . . Robots Rewired . | . . . . . Allies Hacked . | . . . . . Hacks Repelled . | . . . . . Allies | -11 -10 -9 -9 -8 -------- Run | Yrd Mat Mat Min Mat Total Allies 2 | . . . 2 . Largest Group 2 | . . . 2 2 Highest-Rated Group 45 | . . . 45 45 Highest-Rated Ally 31 | . . . 31 31 Total Orders . | . . . . . Ally Attacks 1 | . . . . 1 Total Damage 21 | . . . . 21 Kills . | . . . . . Allies Corrupted . | . . . . . Allies Melted . | . . . . . Intel | -11 -10 -9 -9 -8 ------- Run | Yrd Mat Mat Min Mat Robot Analysis Total . | . . . . . Derelict Logs Recovered 2 | . . . 2 . Drone Launches . | . . . . . Drone Recoveries . | . . . . . Exploration | -11 -10 -9 -9 -8 ------------- Run | Yrd Mat Mat Min Mat Turns Passed 1218 | 118 213 184 426 277 Spaces Moved 951 | 60 202 184 375 130 Core 14 | 14 . . . . Treads 76 | 46 30 . . . Legs . | . . . . . Wheels . | . . . . . Hover 856 | . 172 179 375 130 Flight 5 | . . 5 . . Fastest Speed 50 | 50 56 52 112 112 Average Speed 98 | 144 71 72 112 113 Slowest Speed 176 | 160 160 120 112 176 Overloaded Moves . | . . . . . Propulsion Burnouts . | . . . . . Robots Hopped . | . . . . . Cave-ins Triggered . | . . . . . Exploration Rate (%) 30 | 4 27 19 87 15 Regions Visited 4 Branch Regions 1 Pre-discovered Areas 1 | . . . 1 . Known Exits Taken . | . . . . . Unknown Exits Taken 4 | 1 1 1 1 . Scrap Searched 3 | . . . 3 . Spaces Dug . | . . . . . Terrain Destroyed . | . . . . . Melee . | . . . . . Projectile . | . . . . . AOE . | . . . . . Terrain Rammed . | . . . . . Walls Destroyed . | . . . . . Machines Disabled . | . . . . . Actions | -11 -10 -9 -9 -8 --------- Run | Yrd Mat Mat Min Mat Total 1117 | 77 244 224 381 191 Wait 20 | . 12 6 . 2 Move 947 | 59 201 183 374 130 Hop . | . . . . . Pick Up 16 | 6 2 4 1 3 Fast Attach 18 | 3 7 8 . . Attach 8 | 2 . 3 1 2 Detach 4 | . 2 2 . . Swap 4 | . . 1 . 3 Drop 19 | . 6 10 1 2 Fire 50 | 6 13 6 . 25 Melee 24 | . . . . 24 Ram 6 | . 1 1 4 . Kick . | . . . . . Crush 1 | 1 . . . . Escape Stasis . | . . . . . Rewire . | . . . . . Trap . | . . . . . Miscellaneous . | . . . . . Route ------- -11/Scrapyard -10/Materials (discovered 2 exits: *Mat / [*Min]) -9/Materials (discovered 2 exits: *Min / [*Sto]) -9/Mines (discovered 2 exits: *Mat x2) -8/Materials History --------- Turn | Location | Event 16 | -11/Scrapyard | Discovered new exit (range 16) 119 | -11/Scrapyard | Entered Materials 254 | -10/Materials | Discovered new exit (range 7) 300 | -10/Materials | Build established: Mutant 316 | -10/Materials | Discovered new exit (range 16) 332 | -10/Materials | Entered another Materials area 332 | -9/Materials | Evolved 2 slots: Power x1, Propulsion x1 496 | -9/Materials | Discovered new exit (range 14) 511 | -9/Materials | Discovered new exit (range 16) 516 | -9/Materials | Entered Mines 533 | -9/Mines | Met a Derelict testing a Signal Generator 539 | -9/Mines | Found Signal Generator 566 | -9/Mines | Discovered new exit (range 14) 715 | -9/Mines | Learned Materials terminal intel 913 | -9/Mines | Learned location of Zion (-6) 927 | -9/Mines | Discovered new exit (range 10) 942 | -9/Mines | Entered Materials 942 | -8/Materials | Accompanied by 2 allies 942 | -8/Materials | Evolved 2 slots: Propulsion x1, Utility x1 943 | -8/Materials | Loaded intel: 12 terminal locations 947 | -8/Materials | Led the pair of lost Derelicts to an unsafe place 1202 | -8/Materials | Core integrity fell below 50% 1213 | -8/Materials | Core integrity fell below 20% 1219 | -8/Materials | Destroyed by H-55 Commando with Gauss Rifle Last Messages --------------- 01205_ R-06 Scavenger inserts Imp. Heat Sink into recycling unit. 01207_ G-47 Trooper destroyed. 01208_ R-06 Scavenger inserts Carbon-fiber Leg into recycling unit. 01209_ U-05 Engineer builds a Wall. 01209_ Knocked back. 01210_ Acquired 15 matter. 01210_ U-05 Engineer builds a Wall. 01210_ Slug penetrates Wall. 01210_ S-10 Pest destroyed. 01210_ Sneak attack on U-05 Engineer. 01210_ Destroyed Structural Scanner. 01210_ Destroyed Lgt. Ion Engine. 01210_ U-05 Engineer system corrupted by crushing effect. 01211_ U-05 Engineer system terminally corrupted. 01211_ Welding Torch fried. 01216_ Penetrated by Slug. Map ----- +----------------------------------------------------+ | ??????????????????????????????????????????? | | ??????????????????????????????????????????? | | ??????????????????????????????????????????? | | ??????????????????????????????????????????? | | ??????????????????????????????????????????? | | ??????????????????????????????????????????? | | ??????????????????????????????????????????? | | ??????????????????????????????????????????? | | ??????????????????????????????????????????? | | ??????????????????????????????????????????? | | ??????????????????????????????????????????? | | ??????????????????????????????????????????? | | ??????????????????????????????????????????? | | ??????????????????????????????????????????? | | ??????????????????????????????????????????? | | ??????????????????????????????????????????? | | ?????????????#????????????????????????????? | | ?????????????# ?] ???????????????????????? | | ?????????????#!? ???????????????????????? | | ?????????????? """???????????????????????? | | ?????????????? """???????????????????????? | | ??????????????? """???????????????????????? | | ??????????????? ??????????????????????? | | ?????????########;##??????????????????????? | | ????????## ![ !#%##??????????????????????? | | ????????# [ %#!@#??????????????????????? | | ?????????# =!#H!#??????????????????????? | | ?????????# %Yg##??????????????????????? | | ?????????# "Y"[#h##??????????????????????? | | ?????????# """*#b##??????????????????????? | | ?????????########g##??????????????????????? | | ???????????????##=##??????????????????????? | | ???????????????## ##??????????????????????? | | ???????????????## ##??????????????????????? | | ????############# ##??????????????????????? | | ????############# ##??????????????????????? | | ????## ## ##??????????????????????? | | ????## """ """ ## ######## ???????????????? | | ????## """ """ ## ######## ???????????????? | | ????## """ """ ## #! # ???????????????? | | ###### """ """ ## # ! # ???" "????????? | | ###### ##%# # ???????? | | ##!! # ! + %/= / ???????? | | ##!! # # # ##"#?????????????? | | ##!! #####+##### # ####?????????????? | | ##!! #### #########???????????????? | | ## /]#### #####+####### ???????????????? | | ##/ & # ??????????????????????? | | ######### + ?? ???????????????????????? | | ######### # ?? ???????????????????????? | +----------------------------------------------------+ Best States ------------- Heat Dissipation 31 Energy Generation 19 Energy Capacity 430 Matter Stores 300 Matter Capacity 300 Sight Range 16 Terrain Scan Density 10 Additional Mass Support 6 Armor Coverage 300 Evasion (%) 54 Recoil Reduction 1 Item Schematics ----------------- None Robot Schematics ------------------ None Fabricated ------------ Nothing Alien Tech Used ----------------- None Achievements -------------- True Hacker Challenges ------------ None Game ------ Seed GunProjectionMeganuke Manual? 0 Play Time 00:31:13 Cumulative 10.7 hours Start 2024.04.16 @ 10:36:32 End 2024.04.18 @ 14:55:33 Sessions 6 Manual Loads 0 Difficulty Rogue Special Mode None Game No. 17 Rogue 16 Adventurer 1 Explorer 0 Win Type - Total 0 Types 0/0/0/0/0/0/0/0/0 Lore% 8 Gallery% 12 Achievement% 15 Wizard Run 0 Options --------- Layout 1 ASCII 0 Keyboard 1 Movement Vi Keybinds 0 Fullscreen 2 Font 24/Smallcaps Map View 50x40 Zoom Use 0% Tactical HUD 1 Map Filters NONE Filters NONE Steam 1 RUN: 5e1ef5c0-e566-4304-8774-f155b975be56